bitfinex-derivatives/quotes_ETHF0:USTF0_20250417
["timestamp","ask_amount","ask_price","bid_price","bid_amount"]
[1744897570102,1.25493,1594.0,1593.9,1.6167]
[1744897570297,1.255,1593.9,1593.8,0.00627178]
[1744897570498,1.25508,1593.8,1593.7,2.60135]
[1744897570702,1.25508,1593.8,1593.7,1.3462]
[1744897570904,1.25508,1593.8,1593.7,2.60136]
[1744897571403,1.25508,1593.8,1593.7,1.3462]
[1744897571899,2.90015763,1593.9,1593.7,1.3462]
[1744897572303,1.6033,1593.8,1593.7,1.3462]
[1744897572708,1.6033,1593.8,1593.7,2.60136]
[1744897573604,1.6033,1593.8,1593.7,4.19486]
[1744897574604,0.00940763,1593.9,1593.8,1.25508]
[1744897574803,1.61270763,1593.9,1593.8,2.84858]
[1744897575004,0.00940763,1593.9,1593.8,2.84858]
[1744897575703,0.00940763,1593.9,1593.8,11.05638]
[1744897575905,0.00940763,1593.9,1593.8,15.61038]
[1744897576709,4.02983,1594.4,1594.0,3.13726]
[1744897576894,2.76598313,1594.4,1594.3,1.25469]
[1744897577300,1.25469,1594.3,1594.2,1.7484]
[1744897577495,3.00279,1594.3,1594.2,3.00317]
[1744897577807,1.7481,1594.3,1594.2,3.00317]
[1744897578908,3.00279,1594.3,1594.2,3.00317]
[1744897579300,3.00279,1594.3,1594.1,0.00940763]
[1744897579301,1.25477,1594.2,1594.1,0.00940763]
[1744897579501,3.01557,1594.2,1594.1,0.00940763]
[1744897580608,1.7608,1594.2,1594.1,1.26425763]
[1744897580801,1.7608,1594.2,1594.1,3.02775763]
[1744897581410,3.01557,1594.2,1594.1,3.02775763]
[1744897581610,1.7608,1594.2,1594.1,3.02775763]
[1744897581912,3.01557,1594.2,1594.1,3.02775763]
[1744897582608,3.01557,1594.2,1594.1,1.77290763]
[1744897582817,12.56957,1594.2,1594.1,0.00940763]
[1744897583515,1.25522,1593.7,1593.3,9.48516]
[1744897583715,7.69167,1593.9,1593.5,3.0199]
[1744897584011,1.25524,1593.6,1593.5,3.0199]
[1744897584211,1.25532,1593.5,1593.4,1.25535]
[1744897584405,4.554,1593.6,1593.1,6.34686]
[1744897584605,1.25532,1593.5,1593.4,2.88287]
[1744897584806,2.87822,1593.5,1593.4,2.88287]
[1744897585006,4.56340763,1593.6,1593.5,1.25532]
[1744897585213,4.56340763,1593.6,1593.5,6.09062]
[1744897585400,6.18630763,1593.6,1593.5,2.88282]
[1744897585604,1.63230763,1593.6,1593.5,2.88282]
[1744897586213,2.88754763,1593.6,1593.5,2.88282]
[1744897586517,1.63230763,1593.6,1593.5,2.88282]
[1744897586813,1.63230763,1593.6,1593.5,6.09062]
[1744897587013,1.63230763,1593.6,1593.5,1.25532]
[1744897587709,2.88760763,1593.6,1593.4,2.88283]
[1744897587919,1.63230763,1593.6,1593.5,1.25532]
[1744897588314,1.63230763,1593.6,1593.4,1.6275]
[1744897588516,2.88761763,1593.6,1593.5,1.25532]
[1744897588913,9.84010763,1593.6,1593.2,1.3531]
[1744897589117,1.25556,1593.2,1593.1,2.91191]
[1744897589316,9.12871,1593.3,1592.8,3.2078]
[1744897589514,1.25571,1593.1,1593.0,1.25569]
[1744897589715,42.5092,1593.2,1593.1,1.25563]
[1744897590615,7.358,1593.3,1593.2,1.25556]
[1744897590816,8.61348,1593.3,1593.2,1.25556]
[1744897591125,10.22538,1593.3,1593.2,1.25556]
[1744897591327,1.25556,1593.2,1593.1,4.31577]
[1744897591617,1.25556,1593.2,1593.1,3.00487]
[1744897591618,1.6119,1593.2,1593.1,3.00487]
[1744897591818,7.358,1593.3,1593.2,1.25556]
[1744897592015,8.61348,1593.3,1593.2,3.00486]
[1744897592217,10.22538,1593.3,1593.2,3.00486]
[1744897592722,1.25559,1593.2,1593.1,1.25557]
[1744897593019,2.86749,1593.2,1593.1,1.25557]
[1744897593221,1.25563,1593.1,1593.0,6.21281]
[1744897593417,2.86753,1593.1,1593.0,6.21281]
[1744897594616,2.86753,1593.1,1593.0,4.9571]
[1744897594812,2.86753,1593.1,1593.0,6.21281]
[1744897595011,2.86753,1593.1,1593.0,1.7493]
[1744897595229,2.86753,1593.1,1592.8,1.25581]
[1744897595230,1.25581,1592.9,1592.8,1.25581]
[1744897595622,1.25581,1592.9,1592.8,3.00501]
[1744897595820,2.86081,1592.9,1592.8,3.00501]
[1744897596013,1.605,1592.9,1592.8,3.00501]
[1744897597025,1.3361,1593.2,1592.8,6.7492]
[1744897597218,1.25566,1593.1,1593.0,1.25566]
[1744897597522,1.25571,1593.0,1592.9,1.25573]
[1744897598119,1.25579,1592.9,1592.8,1.6319]
[1744897598315,1.25579,1592.9,1592.5,3.2078]
[1744897598316,1.6099,1592.9,1592.5,3.2078]
[1744897598622,1.25603,1592.6,1592.5,3.2078]
[1744897598818,1.25611,1592.5,1592.4,1.42]
[1744897599027,7.77420763,1592.7,1592.4,1.42]
[1744897599328,1.25605,1592.6,1592.5,1.25606]
[1744897599524,2.86595,1592.6,1592.5,2.88796]
[1744897599727,2.86595,1592.6,1592.5,1.6319]
[1744897599926,1.25611,1592.5,1592.4,2.67613]
[1744897600126,2.92701,1592.5,1592.4,2.67613]
[1744897600327,1.6709,1592.5,1592.4,2.67613]
[1744897600527,2.92701,1592.5,1592.4,2.67613]
[1744897601233,2.92701,1592.5,1592.3,1.5989]
[1744897601422,2.92706,1592.5,1592.3,1.5989]
[1744897601727,1.25606,1592.6,1592.4,1.25613]
[1744897601930,2.92696,1592.6,1592.4,1.25613]
[1744897602128,1.25611,1592.5,1592.4,1.25613]
[1744897602332,7.77420763,1592.7,1592.4,1.25613]
[1744897602333,0.00940763,1592.7,1592.4,3.2078]
[1744897602524,1.26541763,1592.7,1592.5,2.85499]
[1744897602737,1.72050763,1592.7,1592.5,2.85496]
[1744897603029,1.25603,1592.6,1592.5,1.5989]
[1744897603426,1.72050763,1592.7,1592.5,2.85501]
[1744897603620,1.25603,1592.6,1592.5,2.85501]
[1744897604130,2.97651763,1592.7,1592.5,2.85501]
[1744897604734,1.25603,1592.6,1592.5,2.85501]
[1744897605033,2.97651763,1592.7,1592.5,2.85501]
[1744897605331,2.97651763,1592.7,1592.5,1.5989]
[1744897605332,1.25603,1592.6,1592.5,1.5989]
[1744897605523,2.96713,1592.6,1592.5,1.5989]
[1744897605722,1.7111,1592.6,1592.5,2.85501]
[1744897606732,2.96713,1592.6,1592.5,2.85501]
[1744897608534,1.25603,1592.6,1592.5,2.85501]
[1744897608734,1.26538763,1592.7,1592.6,1.25603]
[1744897609035,0.00940763,1592.7,1592.6,1.25603]
[1744897609337,0.00940763,1592.7,1592.5,3.98688]
[1744897609539,1.25603,1592.6,1592.5,2.85498]
[1744897610030,2.91902763,1592.7,1592.6,1.25603]
[1744897611434,1.25603,1592.6,1592.5,2.85494]
[1744897612036,2.91902763,1592.7,1592.6,1.25603]
[1744897613132,1.25603,1592.6,1592.5,2.85494]
[1744897613334,2.91763,1592.6,1592.5,1.5989]
[1744897613528,2.91763,1592.6,1592.5,2.85501]
[1744897614237,1.26541763,1592.7,1592.6,1.25603]
[1744897614442,2.92701763,1592.7,1592.6,1.25603]
[1744897615144,1.25603,1592.6,1592.5,2.85495]
[1744897615344,1.25611,1592.5,1592.4,4.46392]
[1744897615533,1.25611,1592.5,1592.4,6.15392]
[1744897616345,2.44111,1592.5,1592.4,6.15392]
[1744897616546,1.25621,1592.4,1592.2,7.74485]
[1744897616738,2.86021,1592.4,1592.3,2.94619]
[1744897616939,1.25627,1592.3,1592.2,3.2078]
[1744897617135,2.86027,1592.3,1592.2,1.25634]
[1744897617842,2.86027,1592.3,1592.2,2.90254]
[1744897619845,3.14107,1592.1,1591.7,5.856]
[1744897620050,1.1225,1592.0,1591.9,1.25654]
[1744897620548,2.379,1592.0,1591.9,1.25654]
[1744897620743,2.379,1592.0,1591.8,2.90283]
[1744897620744,1.25658,1591.9,1591.8,2.90283]
[1744897621052,1.25658,1591.9,1591.8,2.9028]
[1744897621251,4.07254,1592.0,1591.9,1.25658]
[1744897621450,4.07254,1592.0,1591.9,1.6105]
[1744897621752,4.07254,1592.0,1591.9,2.86708]
[1744897621952,42.05647,1592.1,1592.0,1.2565]
[1744897622148,3.2078,1592.3,1592.2,1.25634]
[1744897622448,3.2078,1592.3,1592.0,4.75174]
[1744897622449,10.45397,1592.5,1592.1,7.49561]
[1744897622644,1.25619,1592.4,1592.2,1.1659]
[1744897622849,1.6935,1592.4,1592.2,2.7764]
[1744897623348,1.6935,1592.4,1592.3,2.86677]
[1744897623543,1.25606,1592.6,1592.5,1.25606]
[1744897623743,1.25611,1592.5,1592.4,1.6105]
[1744897624146,2.90781,1592.5,1592.4,2.86669]
[1744897624853,1.6517,1592.5,1592.4,2.86669]
[1744897625049,0.00940763,1592.7,1592.6,1.25603]
[1744897625266,3.1389,1593.2,1592.7,3.13972]
[1744897625445,1.25574,1593.0,1592.9,1.25575]
[1744897625755,1.25574,1593.0,1592.9,1.666]
[1744897626055,1.25578,1593.0,1592.9,1.25579]
[1744897626351,1.25573,1593.0,1592.9,1.25575]
[1744897626551,1.25573,1593.0,1592.9,1.666]
[1744897626750,1.25579,1592.9,1592.8,0.00940763]
[1744897626954,4.46359,1592.9,1592.8,0.00940763]
[1744897627154,4.07119,1592.9,1592.8,0.00940763]
[1744897628650,1.25579,1592.9,1592.8,1.26523763]
[1744897628846,1.25579,1592.9,1592.8,2.91723763]
[1744897629156,1.25579,1592.9,1592.8,1.66140763]
[1744897629354,10.58769,1592.9,1592.8,0.00940763]
[1744897629651,6.1241,1592.9,1592.5,4.8598]
[1744897629852,1.25592,1592.8,1592.7,1.25593]
[1744897630157,1.25592,1592.8,1592.6,1.652]
[1744897630158,1.25595,1592.7,1592.6,2.90797]
[1744897630359,2.97215,1592.8,1592.7,1.25595]
[1744897630558,1.7162,1592.8,1592.7,2.85625]
[1744897630855,1.25587,1592.8,1592.7,1.6003]
[1744897631158,7.50506,1592.9,1592.8,1.25587]
[1744897631353,2.37716,1593.0,1592.7,4.8081]
[1744897631549,2.37713,1593.0,1592.9,1.25579]
[1744897633046,4.93340763,1593.1,1593.0,1.25571]
[1744897633247,0.00940763,1593.1,1593.0,1.25571]
[1744897634059,0.00940763,1593.1,1593.0,2.97851]
[1744897635251,0.00940763,1593.1,1593.0,7.97851]
[1744897635453,0.00940763,1593.1,1593.0,2.97851]
[1744897638953,1.26503763,1593.1,1593.0,2.97851]
[1744897639160,1.25571,1593.0,1592.9,3.2078]
[1744897639463,2.97631,1593.0,1592.9,4.46359]
[1744897639957,1.16700763,1593.1,1593.0,1.25571]
[1744897640169,0.00940763,1593.1,1593.0,2.95151]
[1744897640465,0.00940763,1593.1,1593.0,4.17391]
[1744897640665,1.26503763,1593.1,1593.0,1.6958]
[1744897641066,2.98563763,1593.1,1593.0,1.6958]
[1744897641268,2.98563763,1593.1,1593.0,2.95151]
[1744897641454,1.73000763,1593.1,1593.0,2.95151]
[1744897641858,2.98563763,1593.1,1593.0,2.95151]
[1744897642268,1.73000763,1593.1,1593.0,2.95151]
[1744897642474,0.00940763,1593.1,1593.0,2.95151]
[1744897644061,1.26503763,1593.1,1593.0,2.95151]
[1744897644870,0.00940763,1593.1,1593.0,2.95151]
[1744897645072,1.26503763,1593.1,1593.0,2.95151]
[1744897645258,2.41093763,1593.1,1593.0,2.95151]
[1744897645872,1.15530763,1593.1,1593.0,2.95151]
[1744897646265,0.00940763,1593.1,1593.0,2.95151]
[1744897646471,4.3654,1593.5,1593.2,3.13889]
[1744897646671,1.25547,1593.4,1593.3,1.25544]
[1744897646872,1.25548,1593.3,1593.2,6.10119]
[1744897647069,1.25548,1593.3,1593.2,2.89339]
[1744897647374,1.25548,1593.3,1593.2,1.25549]
[1744897647872,1.25555,1593.3,1593.2,1.25555]
[1744897648174,1.25548,1593.3,1593.2,2.89344]
[1744897648369,1.76080763,1593.4,1593.2,1.6379]
[1744897648576,1.25548,1593.3,1593.2,2.89344]
[1744897648774,1.25548,1593.3,1593.2,1.25554]
[1744897649074,1.25556,1593.2,1593.1,4.47277763]
[1744897649275,5.65886,1593.2,1593.1,0.00940763]
[1744897650274,10.20886,1593.2,1593.1,0.00940763]
[1744897651075,1.25586,1592.9,1592.8,1.25584]
[1744897651376,1.25586,1592.9,1592.8,2.97294]
[1744897652375,2.85668,1593.0,1592.9,1.25579]
[1744897652775,1.25579,1592.9,1592.8,2.97292]
[1744897653274,2.85664,1593.0,1592.9,1.25579]
[1744897653479,2.85664,1593.0,1592.9,2.89679]
[1744897654164,1.25571,1593.0,1592.9,2.89673]
[1744897654575,1.25584,1592.9,1592.8,1.25582]
[1744897654776,1.6991,1592.9,1592.8,1.25582]
[1744897655073,1.6991,1592.9,1592.8,2.90492]
[1744897655471,4.46359,1592.9,1592.8,1.6491]
[1744897655671,1.25603,1592.6,1592.5,3.2078]
[1744897655870,3.14008,1592.6,1592.4,1.25618]
[1744897656068,4.08973,1592.5,1592.4,1.25619]
[1744897656380,1.25619,1592.4,1592.3,2.90533]
[1744897656571,2.95529,1592.4,1592.3,2.90533]
[1744897656771,1.6991,1592.4,1592.3,2.90533]
[1744897656972,2.39062,1592.5,1592.4,1.25619]
[1744897657173,2.8336,1592.5,1592.4,2.90529]
[1744897657374,3.21720763,1592.7,1592.6,1.25603]
[1744897657574,6.03980763,1592.7,1592.6,1.25603]
[1744897657773,0.00940763,1592.7,1592.6,1.25603]
[1744897657969,1.26535763,1592.7,1592.6,2.47633]
[1744897658182,2.87595763,1592.7,1592.6,2.47633]
[1744897658382,1.62000763,1592.7,1592.6,2.47633]
[1744897658984,0.00940763,1592.7,1592.6,2.47633]
[1744897659487,1.26535763,1592.7,1592.6,1.2203]
[1744897659679,1.25603,1592.6,1592.5,2.86644]
[1744897659885,2.46803,1592.6,1592.5,1.6104]
[1744897660087,1.25611,1592.5,1592.4,1.25613]
[1744897660286,1.6106,1592.5,1592.4,2.86653]
[1744897660580,0.00940763,1592.7,1592.6,1.25603]
[1744897660780,1.26535763,1592.7,1592.6,1.25603]
[1744897660976,0.00940763,1592.7,1592.6,1.25603]
[1744897661176,1.26535763,1592.7,1592.6,1.25603]
[1744897661378,1.25603,1592.6,1592.5,2.98454]
[1744897661679,2.94910763,1592.7,1592.6,1.25603]
[1744897662178,1.69310763,1592.7,1592.6,1.25603]
[1744897662382,2.94905763,1592.7,1592.6,1.25603]
[1744897662680,2.94905763,1592.7,1592.6,1.7285]
[1744897662875,2.94905763,1592.7,1592.6,2.98453]
[1744897663885,1.69310763,1592.7,1592.6,2.98453]
[1744897664085,2.94905763,1592.7,1592.6,2.98453]
[1744897666089,2.94905763,1592.7,1592.6,1.7285]
[1744897666285,2.94905763,1592.7,1592.6,2.98453]
[1744897666587,1.25603,1592.6,1592.5,1.25607]
[1744897666986,1.25603,1592.6,1592.5,2.96867]
[1744897667790,2.94913763,1592.7,1592.6,1.25603]
[1744897667990,2.94913763,1592.7,1592.6,2.96863]
[1744897668382,2.94913763,1592.7,1592.6,1.7126]
[1744897668582,1.25603,1592.6,1592.5,1.25606]
[1744897668785,2.90533,1592.6,1592.5,2.96866]
[1744897669492,2.90533,1592.6,1592.4,4.46393]
[1744897669493,1.25611,1592.5,1592.4,4.46393]
[1744897669790,1.25611,1592.5,1592.4,6.13721]
[1744897670192,1.25611,1592.5,1592.4,1.6733]
[1744897670387,1.25627,1592.3,1592.2,10.32014]
[1744897670595,1.25627,1592.3,1592.2,3.2078]
[1744897670890,2.96497,1592.3,1592.2,3.2078]
[1744897671286,14.35445,1592.3,1591.9,9.6101938]
[1744897671597,1.2565,1592.0,1591.9,9.6101938]
[1744897671796,1.2565,1592.0,1591.9,8.3536438]
[1744897672094,5.7615,1592.0,1591.9,8.3536438]
[1744897672699,8.6908,1592.0,1591.9,8.3536438]
[1744897674492,8.6908,1592.0,1591.9,10.0413438]
[1744897675197,8.6908,1592.0,1591.9,1.6877]
[1744897676895,1.25658,1591.9,1591.8,1.2605]
[1744897677097,1.25666,1591.8,1591.7,1.6853]
[1744897677603,2.90566,1591.8,1591.7,1.6853]
[1744897678993,1.1888,1591.9,1591.7,1.6853]
[1744897679190,1.25666,1591.8,1591.7,2.94198]
[1744897679587,2.8781,1591.9,1591.7,1.6853]
[1744897679795,4.13468,1591.9,1591.8,2.97966]
[1744897680304,4.13468,1591.9,1591.8,1.723]
[1744897680803,4.13468,1591.9,1591.8,2.97966]
[1744897681102,1.25658,1591.9,1591.8,2.97966]
[1744897681295,3.2078,1592.1,1591.8,1.723]
[1744897681499,4.46426,1592.1,1592.0,1.2565]
[1744897681992,4.46426,1592.1,1592.0,4.2532]
[1744897682192,13.51193,1592.3,1592.2,1.25634]
[1744897682388,1.25639,1592.2,1592.1,1.25639]
[1744897682593,1.25639,1592.2,1592.1,1.7643]
[1744897682901,3.01499,1592.2,1592.1,1.7643]
[1744897683801,1.25649,1592.1,1592.0,1.25649]
[1744897683998,3.01509,1592.1,1592.0,3.02079]
[1744897684297,1.25639,1592.2,1592.1,1.25639]
[1744897684488,1.25642,1592.1,1592.0,3.02074]
[1744897685287,2.973,1592.2,1592.0,1.7643]
[1744897685493,1.2563,1592.3,1592.2,1.25629]
[1744897685694,1.25634,1592.2,1592.1,4.8016]
[1744897685898,2.97294,1592.2,1592.1,4.8016]
[1744897686292,2.97294,1592.2,1592.1,6.05802]
[1744897686596,2.97294,1592.2,1592.1,4.8016]
[1744897686802,1.2565,1592.0,1591.9,5.69486]
[1744897686993,1.2565,1592.0,1591.9,7.28866]
[1744897687987,2.9778,1592.0,1591.9,4.08086]
[1744897688191,1.25658,1591.9,1591.8,1.2324]
[1744897688387,2.97788,1591.9,1591.8,2.9716]
[1744897688797,1.25682,1591.6,1591.5,2.46903]
[1744897688987,3.14166,1591.8,1591.5,1.25683]
[1744897688988,6.03896,1591.8,1591.5,1.25683]
[1744897689193,1.26617763,1591.7,1591.6,1.25676]
[1744897689996,1.25682,1591.6,1591.5,2.46903]
[1744897690197,2.98745763,1591.7,1591.6,1.25682]
[1744897690490,1.26615763,1591.7,1591.6,1.7392]
[1744897690802,1.25688,1591.6,1591.5,1.25687]
[1744897690998,1.25688,1591.6,1591.5,2.96207]
[1744897692900,1.26617763,1591.7,1591.6,1.25682]
[1744897693099,1.26617763,1591.7,1591.6,2.96202]
[1744897693704,1.26617763,1591.7,1591.6,1.7052]
[1744897693906,1.26617763,1591.7,1591.6,2.96202]
[1744897694101,1.26617763,1591.7,1591.6,1.7052]
[1744897694302,0.00940763,1591.7,1591.6,2.96202]
[1744897694502,1.26614763,1591.7,1591.6,2.96202]
[1744897697601,1.26614763,1591.7,1591.6,1.7052]
[1744897697805,1.26614763,1591.7,1591.6,2.96202]
[1744897698399,1.26614763,1591.7,1591.6,1.7052]
[1744897698901,1.26614763,1591.7,1591.6,2.96202]
[1744897699105,0.00940763,1591.7,1591.6,2.96202]
[1744897700311,1.26614763,1591.7,1591.6,2.96202]
[1744897701006,0.00940763,1591.7,1591.6,2.96202]
[1744897701406,0.00940763,1591.7,1591.6,7.96202]
[1744897701708,0.00940763,1591.7,1591.6,11.16982]
[1744897702705,11.9556,1592.4,1592.2,1.25631]
[1744897702905,3.14037,1592.5,1592.3,2.91677]
[1744897702906,1.25614,1592.5,1592.3,2.91677]
[1744897703209,1.25614,1592.5,1592.4,2.98681]
[1744897703404,10.20836064,1592.6,1592.5,1.25611]
[1744897703606,10.20836064,1592.6,1592.5,2.98681]
[1744897704613,3.12178441,1592.6,1592.5,7.98681]
[1744897705809,0.00940763,1592.7,1592.6,1.25603]
[1744897706008,0.00940763,1592.7,1592.6,12.03803]
[1744897706204,0.00940763,1592.7,1592.6,17.03803]
[1744897707312,7.63e-06,1592.7,1592.6,17.03803]
[1744897710604,7.63e-06,1592.7,1592.6,12.03803]
[1744897710910,7.63e-06,1592.7,1592.6,7.42523]
[1744897711105,1.74370763,1592.7,1592.6,7.42523]
[1744897711307,1.74370763,1592.7,1592.6,2.97423]
[1744897711807,6.74370763,1592.7,1592.6,1.25603]
[1744897712115,1.74370763,1592.7,1592.6,1.25603]
[1744897712413,1.74370763,1592.7,1592.6,4.46383]
[1744897712615,7.63e-06,1592.7,1592.6,4.46383]
[1744897716518,7.63e-06,1592.7,1592.6,1.25603]
[1744897717020,1.69920763,1592.7,1592.6,1.25603]
[1744897717214,1.69920763,1592.7,1592.4,3.21720763]
[1744897717416,3.5853,1592.6,1592.5,1.25611]
[1744897717612,1.25611,1592.5,1592.4,1.26556763]
[1744897717913,2.95531,1592.5,1592.4,1.26556763]
[1744897718113,1.6992,1592.5,1592.4,1.26556763]
[1744897718713,1.6992,1592.5,1592.4,2.87656763]
[1744897719520,2.3292,1592.6,1592.5,1.25611]
[1744897719713,2.3292,1592.6,1592.5,4.46391]
[1744897720011,1.1757,1592.6,1592.5,4.46391]
[1744897720407,7.63e-06,1592.7,1592.6,1.25603]
[1744897720607,7.63e-06,1592.7,1592.6,2.86703]
[1744897720809,7.63e-06,1592.7,1592.6,18.17403]
[1744897721921,7.63e-06,1592.7,1592.6,13.17403]
[1744897724321,1.634,1592.9,1592.8,1.25587]
[1744897724524,1.634,1592.9,1592.8,4.46367]
[1744897726017,2.95330763,1593.0,1592.9,1.25579]
[1744897728823,4.20901763,1593.0,1592.9,1.25579]
[1744897729021,2.95330763,1593.0,1592.9,1.25579]
[1744897729219,2.95330763,1593.0,1592.9,4.46359]
[1744897729629,4.20901763,1593.0,1592.9,4.46359]
[1744897730124,2.95330763,1593.0,1592.9,4.46359]
[1744897730530,4.20901763,1593.0,1592.9,4.46359]
[1744897731727,2.95330763,1593.0,1592.9,4.46359]
[1744897732526,4.20901763,1593.0,1592.9,4.46359]
[1744897733433,2.95330763,1593.0,1592.9,4.46359]
[1744897736933,2.95330763,1593.0,1592.9,6.12339]
[1744897738023,0.00940763,1593.0,1592.9,6.12339]
[1744897738230,0.00940763,1593.0,1592.9,10.56939]
[1744897739533,0.00940763,1593.0,1592.9,11.07921762]
[1744897739735,7.63e-06,1593.0,1592.9,16.93521762]
[1744897740136,7.63e-06,1593.0,1592.9,16.42539]
[1744897740338,7.63e-06,1593.0,1592.8,1.25581]
[1744897740641,7.63e-06,1593.0,1592.9,1.25579]
[1744897740934,7.63e-06,1593.0,1592.9,2.92999]
[1744897741244,7.63e-06,1593.0,1592.9,4.13039]
[1744897741532,7.63e-06,1593.0,1592.9,9.98639]
[1744897741728,7.63e-06,1593.0,1592.9,14.98639]
[1744897742932,7.63e-06,1593.0,1592.9,9.98639]
[1744897745234,7.63e-06,1593.0,1592.9,14.98639]
[1744897747234,1.2188,1593.5,1593.4,1.2554]
[1744897747539,1.20958313,1593.5,1593.4,8.9092]
[1744897748636,2.80678313,1593.5,1593.4,8.9092]
[1744897748836,4.06210313,1593.5,1593.4,5.7014]
[1744897749238,4.06210313,1593.5,1593.4,1.2554]
[1744897750039,2.80678313,1593.5,1593.4,1.2554]
[1744897750937,9.06210313,1593.5,1593.4,1.2554]
[1744897753745,1.2554,1593.4,1593.3,0.00940763]
[1744897753933,6.1138,1593.4,1593.3,0.00940763]
[1744897754137,12.351,1593.4,1593.3,0.00940763]
[1744897754338,1.25571,1593.0,1592.9,4.46358]
[1744897754545,1.2557,1593.1,1593.0,1.25566]
[1744897754844,4.1462,1593.1,1593.0,1.25566]
[1744897755834,1.25571,1593.0,1592.9,4.46374076]
[1744897756039,2.97621,1593.0,1592.9,0.00940763]
[1744897756338,1.25579,1592.9,1592.8,8.3536438]
[1744897756647,1.25587,1592.8,1592.7,12.460258]
[1744897756847,8.87267,1592.8,1592.7,12.460258]
[1744897757051,17.47703,1592.8,1592.4,1.25616]
[1744897757343,1.7205,1592.7,1592.4,1.26556763]
[1744897757746,1.25611,1592.5,1592.4,0.00940763]
[1744897758450,2.88311,1592.5,1592.4,0.00940763]
[1744897759552,7.88311,1592.5,1592.4,0.00940763]
[1744897759944,12.29311,1592.5,1592.4,0.00940763]
[1744897761553,7.29311,1592.5,1592.4,0.00940763]
[1744897761745,12.29311,1592.5,1592.4,0.00940763]
[1744897762050,7.29311,1592.5,1592.4,0.00940763]
[1744897762551,1.25634,1592.2,1592.1,1.2564]
[1744897762754,1.25646,1592.1,1592.0,1.25645]
[1744897762955,4.07566,1592.1,1592.0,1.25645]
[1744897763347,1.25654,1592.0,1591.9,1.25652]
[1744897763547,1.5995,1592.0,1591.9,1.25652]
[1744897763852,2.856,1592.0,1591.9,1.25652]
[1744897764150,1.5995,1592.0,1591.9,1.25652]
[1744897764747,2.856,1592.0,1591.9,1.25652]
[1744897764957,1.5995,1592.0,1591.9,1.25652]
[1744897765350,2.856,1592.0,1591.9,1.25652]
[1744897766450,44.0078,1592.4,1592.1,1.25633]
[1744897766643,1.25637,1592.2,1592.1,1.25633]
[1744897767654,2.97957,1592.2,1592.1,1.25633]
[1744897768052,1.7232,1592.2,1592.1,1.25633]
[1744897768250,1.7232,1592.2,1592.1,3.00903]
[1744897768452,1.2314,1592.3,1592.2,1.25634]
[1744897768654,1.7232,1592.4,1592.3,1.25627]
[1744897769257,5.72017,1592.6,1592.5,1.25611]
[1744897769459,2.9795,1592.6,1592.5,1.25611]
[1744897769659,1.26529763,1592.8,1592.7,1.25595]
[1744897770057,0.00940763,1592.8,1592.7,1.25595]
[1744897770257,1.62430763,1592.8,1592.7,1.25595]
[1744897770653,1.62430763,1592.8,1592.7,4.46375]
[1744897770959,0.00940763,1592.8,1592.7,4.46375]
[1744897771156,0.00940763,1592.8,1592.7,7.36925]
[1744897771454,0.00940763,1592.8,1592.7,12.36925]
[1744897771957,7.63e-06,1592.8,1592.7,12.36925]
[1744897772458,10.3547968,1593.2,1593.1,1.25563]
[1744897772651,1.6149,1593.5,1593.4,1.2554]
[1744897772851,2.86100313,1593.5,1593.4,1.2554]
[1744897773256,1.60568313,1593.5,1593.4,2.9893]
[1744897773457,5.6982,1593.8,1593.7,1.25516]
[1744897773458,3.74551,1593.8,1593.7,1.25516]
[1744897774950,1.25516,1593.7,1593.6,2.99848763]
[1744897775152,1.25516,1593.7,1593.6,0.00940763]
[1744897775363,6.25516,1593.7,1593.6,0.00940763]
[1744897775563,1.2554,1593.4,1593.3,1.7339]
[1744897775858,1.25548,1593.3,1593.2,4.46329]
[1744897776459,1.25556,1593.2,1593.1,2.98947]
[1744897776659,1.25563,1593.1,1593.0,1.25566]
[1744897776857,2.97053,1593.1,1593.0,1.25566]
[1744897777359,1.7149,1593.1,1593.0,1.25566]
[1744897778461,1.25563,1593.2,1593.1,1.25563]
[1744897778659,2.97053,1593.2,1593.1,1.25563]
[1744897778959,1.25564,1593.1,1593.0,1.25565]
[1744897779253,1.7149,1593.2,1592.9,4.3685]
[1744897779458,2.97051,1593.2,1593.1,1.25563]
[1744897780255,1.7149,1593.2,1593.0,1.6136]
[1744897780455,2.97051,1593.2,1593.1,1.25563]
[1744897782956,2.40528,1593.3,1593.2,1.25556]
[1744897783159,8.56326,1593.4,1593.3,1.25548]
[1744897783457,4.15326,1593.4,1593.3,1.25548]
[1744897783859,1.25548,1593.3,1593.2,2.89218]
[1744897784456,1.6687,1593.3,1593.2,2.89218]
[1744897785257,2.92418,1593.3,1593.2,2.89218]
[1744897785457,1.6687,1593.3,1593.2,2.89218]
[1744897786362,2.48457,1593.4,1593.3,1.25548]
[1744897786561,3.0029,1593.4,1593.3,2.85428]
[1744897787054,1.7475,1593.4,1593.3,2.85428]
[1744897787263,2.9324,1593.5,1593.4,1.2554]
[1744897787560,1.25527,1593.6,1593.5,1.25532]
[1744897788264,1.25532,1593.5,1593.4,2.85418]
[1744897788660,2.90482,1593.5,1593.4,2.85418]
[1744897789260,1.6495,1593.5,1593.4,2.85418]
[1744897789850,2.90482,1593.5,1593.4,2.85418]
[1744897790859,1.2553,1593.6,1593.5,1.25527]
[1744897791156,1.2553,1593.6,1593.5,2.98057]
[1744897791662,2.9992,1593.6,1593.5,2.98057]
[1744897793060,2.99914,1593.6,1593.5,2.98057]
[1744897795867,1.7439,1593.6,1593.5,2.98057]
[1744897796267,2.99914,1593.6,1593.5,2.98057]
[1744897796568,1.25538,1593.5,1593.4,1.25534]
[1744897796865,1.2554,1593.4,1593.3,3.2078]
[1744897797168,1.25551,1593.3,1593.2,1.25545]
[1744897797366,4.12237,1593.4,1593.3,1.25548]